[Event "Late-Titled-Tuesday-Blitz-April-16-2024"]
[Site "Chess.com"]
[Date "2024.04.16"]
[Round "2"]
[White "zsizsi99"]
[Black "NowInChess"]
[Result "0-1"]
[WhiteElo "2472"]
[BlackElo "2258"]
[TimeControl "180+1"]
[EndTime "14:18:43 PDT"]
[Termination "NowInChess won by resignation"]

1. e4 {[%clk 0:02:53]} 1... e6 {[%clk 0:03:00.1]} 2. d4 {[%clk 0:02:52.5]} 2...
d5 {[%clk 0:03:00.6]} 3. exd5 {[%clk 0:02:52.7]} 3... exd5 {[%clk 0:03:00.5]} 4.
Nc3 {[%clk 0:02:53.4]} 4... Bb4 {[%clk 0:02:58.6]} 5. Bf4 {[%clk 0:02:53.1]}
5... Nf6 {[%clk 0:02:57.4]} 6. Bd3 {[%clk 0:02:52.9]} 6... O-O {[%clk
0:02:54.7]} 7. Ne2 {[%clk 0:02:53.5]} 7... Re8 {[%clk 0:02:53.7]} 8. Qd2 {[%clk
0:02:53.2]} 8... Ne4 {[%clk 0:02:47.1]} 9. Bxe4 {[%clk 0:02:53.1]} 9... dxe4
{[%clk 0:02:45.4]} 10. O-O-O {[%clk 0:02:53]} 10... c5 {[%clk 0:02:39.8]} 11.
dxc5 {[%clk 0:02:49.2]} 11... Qxd2+ {[%clk 0:02:38.9]} 12. Rxd2 {[%clk
0:02:49.6]} 12... Bxc5 {[%clk 0:02:38.1]} 13. Nxe4 {[%clk 0:02:49.6]} 13... Rxe4
{[%clk 0:02:31.1]} 14. Rd8+ {[%clk 0:02:49]} 14... Bf8 {[%clk 0:02:31.5]} 15.
Bd6 {[%clk 0:02:49.1]} 15... Nd7 {[%clk 0:02:29.4]} 16. Nc3 {[%clk 0:02:41.4]}
16... Rd4 {[%clk 0:02:18.2]} 17. Nb5 {[%clk 0:02:40.3]} 17... Rd5 {[%clk
0:02:08.1]} 18. c4 {[%clk 0:02:40.1]} 18... Rxd6 {[%clk 0:01:50.8]} 19. Nxd6
{[%clk 0:02:39.7]} 19... Nb6 {[%clk 0:01:49.3]} 20. c5 {[%clk 0:02:37.5]} 20...
Be6 {[%clk 0:01:43.8]} 21. Rxf8+ {[%clk 0:02:30]} 21... Kxf8 {[%clk 0:01:40.7]}
22. cxb6 {[%clk 0:02:30.7]} 22... Bxa2 {[%clk 0:01:32.1]} 23. bxa7 {[%clk
0:02:27.1]} 23... Rxa7 {[%clk 0:01:30]} 24. Rd1 {[%clk 0:02:08]} 24... Bb3
{[%clk 0:01:20.7]} 25. Rd3 {[%clk 0:01:58.8]} 25... Ra1+ {[%clk 0:01:19]} 26.
Kd2 {[%clk 0:01:59.3]} 26... Rd1+ {[%clk 0:01:18.8]} 27. Kc3 {[%clk 0:01:59.2]}
27... Rxd3+ {[%clk 0:01:18.6]} 28. Kxd3 {[%clk 0:01:59.8]} 28... Bd5 {[%clk
0:01:17.2]} 29. g3 {[%clk 0:01:52]} 29... Ke7 {[%clk 0:01:16.9]} 30. Nf5+ {[%clk
0:01:49.6]} 30... Kf6 {[%clk 0:01:15.2]} 31. Ne3 {[%clk 0:01:49.7]} 31... Bf3
{[%clk 0:01:13]} 32. Kd4 {[%clk 0:01:49.3]} 32... Ke6 {[%clk 0:01:11.6]} 33. b4
{[%clk 0:01:44.8]} 33... g5 {[%clk 0:01:01.1]} 34. Nc2 {[%clk 0:01:32.5]} 34...
Kf5 {[%clk 0:00:49]} 35. Ne1 {[%clk 0:01:32.4]} 35... Bc6 {[%clk 0:00:45.1]} 36.
Nd3 {[%clk 0:01:26.8]} 36... f6 {[%clk 0:00:35.7]} 37. Nb2 {[%clk 0:00:58.2]}
37... Kg4 {[%clk 0:00:33.5]} 38. Ke3 {[%clk 0:00:56.5]} 38... Kh3 {[%clk
0:00:30.7]} 39. Nc4 {[%clk 0:00:54.9]} 39... h5 {[%clk 0:00:24.8]} 40. Na5
{[%clk 0:00:53.3]} 40... Bd5 {[%clk 0:00:20.4]} 41. Kd4 {[%clk 0:00:42.2]} 41...
Bg2 {[%clk 0:00:20.2]} 42. b5 {[%clk 0:00:36.7]} 42... Kxh2 {[%clk 0:00:19.4]}
43. Kc5 {[%clk 0:00:35.1]} 43... Kg1 {[%clk 0:00:18.8]} 44. Kb6 {[%clk
0:00:33.6]} 44... h4 {[%clk 0:00:18.6]} 45. gxh4 {[%clk 0:00:32.4]} 45... gxh4
{[%clk 0:00:18.6]} 46. Nxb7 {[%clk 0:00:33.1]} 46... h3 {[%clk 0:00:19.2]} 47.
Nd8 {[%clk 0:00:32]} 47... h2 {[%clk 0:00:18.6]} 48. Nc6 {[%clk 0:00:32.7]}
48... h1=Q {[%clk 0:00:18.1]} 49. f4 {[%clk 0:00:31.8]} 49... Bxc6 {[%clk
0:00:17.2]} 50. bxc6 {[%clk 0:00:32.2]} 50... Qe4 {[%clk 0:00:15.3]} 51. c7
{[%clk 0:00:31.6]} 51... Qb4+ {[%clk 0:00:15.1]} 52. Kc6 {[%clk 0:00:28.8]}
52... Qc4+ {[%clk 0:00:14.2]} 53. Kb7 {[%clk 0:00:21.8]} 53... Qd5+ {[%clk
0:00:13.6]} 54. Ka7 {[%clk 0:00:20.5]} 54... Qa5+ {[%clk 0:00:12.4]} 55. Kb7
{[%clk 0:00:20.5]} 55... Qb5+ {[%clk 0:00:12.8]} 56. Ka7 {[%clk 0:00:20]} 56...
Qc6 {[%clk 0:00:12.2]} 57. Kb8 {[%clk 0:00:16.2]} 57... Qb6+ {[%clk 0:00:12.1]}
58. Kc8 {[%clk 0:00:16]} 58... Kf2 {[%clk 0:00:11.2]} 59. f5 {[%clk 0:00:16]}
59... Ke3 {[%clk 0:00:09.5]} 60. Kd7 {[%clk 0:00:15.5]} 60... Qb7 {[%clk
0:00:08.9]} 61. Kd8 {[%clk 0:00:15.4]} 61... Qxc7+ {[%clk 0:00:08]} 62. Kxc7
{[%clk 0:00:15.7]} 62... Ke4 {[%clk 0:00:08.8]} 63. Kc6 {[%clk 0:00:14.7]} 63...
Kxf5 {[%clk 0:00:09.7]} 64. Kd5 {[%clk 0:00:15.2]} 64... Kf4 {[%clk 0:00:10]}
65. Kd4 {[%clk 0:00:16.1]} 65... f5 {[%clk 0:00:10.3]} 0-1

[Event "Late-Titled-Tuesday-Blitz-April-16-2024"]
[Site "Chess.com"]
[Date "2024.04.16"]
[Round "2"]
[White "masterofpuppets2"]
[Black "GWR2024"]
[Result "1-0"]
[WhiteElo "2473"]
[BlackElo "2182"]
[TimeControl "180+1"]
[EndTime "14:18:47 PDT"]
[Termination "masterofpuppets2 won on time"]

1. d4 {[%clk 0:03:00.9]} 1... f5 {[%clk 0:02:54.9]} 2. c4 {[%clk 0:03:00.7]}
2... Nf6 {[%clk 0:02:54.4]} 3. Nc3 {[%clk 0:03:00.8]} 3... g6 {[%clk 0:02:54.1]}
4. g3 {[%clk 0:02:58.7]} 4... Bg7 {[%clk 0:02:54.2]} 5. Bg2 {[%clk 0:02:59.6]}
5... O-O {[%clk 0:02:54.2]} 6. b3 {[%clk 0:02:58.4]} 6... d6 {[%clk 0:02:53.3]}
7. Bb2 {[%clk 0:02:58.8]} 7... Nc6 {[%clk 0:02:53.2]} 8. d5 {[%clk 0:02:57.5]}
8... Ne5 {[%clk 0:02:53.2]} 9. e3 {[%clk 0:02:52]} 9... c6 {[%clk 0:02:49]} 10.
Nge2 {[%clk 0:02:51.2]} 10... Bd7 {[%clk 0:02:41.3]} 11. O-O {[%clk 0:02:44.8]}
11... g5 {[%clk 0:02:39.3]} 12. h3 {[%clk 0:02:36.9]} 12... h6 {[%clk
0:02:35.6]} 13. f4 {[%clk 0:02:35.5]} 13... Ng6 {[%clk 0:02:21.2]} 14. fxg5
{[%clk 0:02:30.3]} 14... hxg5 {[%clk 0:02:19.8]} 15. Nd4 {[%clk 0:02:27.8]}
15... Nh7 {[%clk 0:01:48.2]} 16. dxc6 {[%clk 0:02:11.6]} 16... bxc6 {[%clk
0:01:45.2]} 17. Nxc6 {[%clk 0:02:06]} 17... Qe8 {[%clk 0:01:26.4]} 18. Nd4
{[%clk 0:02:02.5]} 18... e5 {[%clk 0:01:22.1]} 19. Ndb5 {[%clk 0:01:54.1]} 19...
e4 {[%clk 0:01:10.9]} 20. Nxd6 {[%clk 0:01:51.1]} 20... Qd8 {[%clk 0:01:03.3]}
21. Qd5+ {[%clk 0:01:41.5]} 21... Kh8 {[%clk 0:01:03]} 22. Nf7+ {[%clk 0:01:38]}
22... Rxf7 {[%clk 0:01:01.1]} 23. Qxf7 {[%clk 0:01:37.2]} 23... Ne5 {[%clk
0:00:59.8]} 24. Qd5 {[%clk 0:01:30.3]} 24... Nd3 {[%clk 0:00:59.5]} 25. Rad1
{[%clk 0:01:17.3]} 25... Nxb2 {[%clk 0:00:57.1]} 26. Nb5 {[%clk 0:01:10.2]}
26... Nxd1 {[%clk 0:00:52.5]} 27. Rxd1 {[%clk 0:01:11.1]} 27... Qb6 {[%clk
0:00:42.7]} 28. Qxa8+ {[%clk 0:01:08.2]} 28... Nf8 {[%clk 0:00:42.2]} 29. Nd4
{[%clk 0:00:49]} 29... f4 {[%clk 0:00:37.2]} 30. Qd5 {[%clk 0:00:36.4]} 30...
fxe3 {[%clk 0:00:35.9]} 31. c5 {[%clk 0:00:37]} 31... Qf6 {[%clk 0:00:32.6]} 32.
Rf1 {[%clk 0:00:29.3]} 32... Qxd4 {[%clk 0:00:32]} 33. Rxf8+ {[%clk 0:00:28.8]}
33... Kh7 {[%clk 0:00:32]} 34. Bxe4+ {[%clk 0:00:23.6]} 34... Kh6 {[%clk
0:00:30.9]} 35. Qxd4 {[%clk 0:00:13]} 35... Bxd4 {[%clk 0:00:29.1]} 36. Kf1
{[%clk 0:00:06.2]} 36... Bxh3+ {[%clk 0:00:28.2]} 37. Ke2 {[%clk 0:00:04.7]}
37... Bxc5 {[%clk 0:00:28.1]} 38. Rh8+ {[%clk 0:00:02.6]} 38... Kg7 {[%clk
0:00:27.5]} 39. Rxh3 {[%clk 0:00:03.5]} 39... Kf6 {[%clk 0:00:27.2]} 40. g4
{[%clk 0:00:04]} 40... Ke5 {[%clk 0:00:25.8]} 41. Bd3 {[%clk 0:00:04.9]} 41...
Kf4 {[%clk 0:00:25.8]} 42. Rf3+ {[%clk 0:00:05.8]} 42... Kxg4 {[%clk 0:00:25.8]}
43. Rf5 {[%clk 0:00:06.7]} 43... Bd4 {[%clk 0:00:25]} 44. Rf7 {[%clk 0:00:07.3]}
44... Kh3 {[%clk 0:00:23.8]} 45. Rd7 {[%clk 0:00:08.2]} 45... Bb6 {[%clk
0:00:22.9]} 46. Be4 {[%clk 0:00:08.6]} 46... g4 {[%clk 0:00:22.6]} 47. a4 {[%clk
0:00:09.5]} 47... g3 {[%clk 0:00:22.3]} 48. Bf3 {[%clk 0:00:08.8]} 48... g2
{[%clk 0:00:22.3]} 49. Rh7+ {[%clk 0:00:09]} 49... Kg3 {[%clk 0:00:21.7]} 50.
Rg7+ {[%clk 0:00:09.6]} 50... Kf4 {[%clk 0:00:21.4]} 51. Rxg2 {[%clk 0:00:10.5]}
51... Ke5 {[%clk 0:00:21.4]} 52. Rg4 {[%clk 0:00:11.4]} 52... Kd6 {[%clk
0:00:21.2]} 53. b4 {[%clk 0:00:12.3]} 53... Bd4 {[%clk 0:00:20.8]} 54. a5 {[%clk
0:00:13.2]} 54... Bc3 {[%clk 0:00:21.4]} 55. Rc4 {[%clk 0:00:12.3]} 55... Bd2
{[%clk 0:00:20.7]} 56. a6 {[%clk 0:00:12]} 56... Ke5 {[%clk 0:00:19.9]} 57. b5
{[%clk 0:00:12.1]} 57... Kd6 {[%clk 0:00:20.3]} 58. Rc6+ {[%clk 0:00:12.1]}
58... Ke5 {[%clk 0:00:20]} 59. Rc7 {[%clk 0:00:11.9]} 59... Ba5 {[%clk
0:00:18.5]} 60. Rxa7 {[%clk 0:00:12.8]} 60... Bb6 {[%clk 0:00:19.1]} 61. Rb7
{[%clk 0:00:13.4]} 61... Bd4 {[%clk 0:00:19.2]} 62. a7 {[%clk 0:00:14.3]} 1-0

[Event "Late-Titled-Tuesday-Blitz-April-16-2024"]
[Site "Chess.com"]
[Date "2024.04.16"]
[Round "2"]
[White "CrushingKings"]
[Black "ContrVersia"]
[Result "1-0"]
[WhiteElo "2598"]
[BlackElo "2867"]
[TimeControl "180+1"]
[EndTime "14:18:53 PDT"]
[Termination "CrushingKings won on time"]

1. Nf3 {[%clk 0:03:00.9]} 1... d5 {[%clk 0:02:59.7]} 2. g3 {[%clk 0:03:00]} 2...
Nd7 {[%clk 0:02:59.9]} 3. d4 {[%clk 0:02:59.6]} 3... Nb6 {[%clk 0:03:00]} 4. Nh4
{[%clk 0:03:00.3]} 4... Nf6 {[%clk 0:02:49.8]} 5. Bg2 {[%clk 0:03:00.8]} 5... g6
{[%clk 0:02:48.8]} 6. O-O {[%clk 0:03:01.3]} 6... Bg7 {[%clk 0:02:48.8]} 7. b3
{[%clk 0:03:01.9]} 7... O-O {[%clk 0:02:48.5]} 8. Bb2 {[%clk 0:03:01.9]} 8... a5
{[%clk 0:02:40.8]} 9. a4 {[%clk 0:03:02.5]} 9... c6 {[%clk 0:02:41]} 10. Nd2
{[%clk 0:03:02.8]} 10... g5 {[%clk 0:02:22.1]} 11. Nhf3 {[%clk 0:03:02.5]} 11...
h6 {[%clk 0:02:22.5]} 12. Re1 {[%clk 0:03:02.1]} 12... Bf5 {[%clk 0:02:22.4]}
13. Ne5 {[%clk 0:03:02.2]} 13... e6 {[%clk 0:02:22]} 14. f3 {[%clk 0:02:58.6]}
14... Nbd7 {[%clk 0:02:21.1]} 15. e4 {[%clk 0:02:58.5]} 15... Bh7 {[%clk
0:02:21.3]} 16. Kh1 {[%clk 0:02:54.1]} 16... Nxe5 {[%clk 0:02:19.2]} 17. dxe5
{[%clk 0:02:54.3]} 17... Nd7 {[%clk 0:02:18.4]} 18. f4 {[%clk 0:02:55]} 18... f6
{[%clk 0:02:16.2]} 19. exd5 {[%clk 0:02:38.9]} 19... cxd5 {[%clk 0:02:16.2]} 20.
exf6 {[%clk 0:02:39.2]} 20... Bxf6 {[%clk 0:02:15.4]} 21. Bxf6 {[%clk
0:02:39.2]} 21... Qxf6 {[%clk 0:02:15.3]} 22. fxg5 {[%clk 0:02:37.4]} 22... hxg5
{[%clk 0:02:15.4]} 23. Ne4 {[%clk 0:02:37.7]} 23... Qg7 {[%clk 0:02:06.7]} 24.
Nd6 {[%clk 0:02:33.2]} 24... Nc5 {[%clk 0:01:46.4]} 25. Qd2 {[%clk 0:02:06]}
25... b6 {[%clk 0:01:07.3]} 26. b4 {[%clk 0:00:59.2]} 26... axb4 {[%clk
0:01:08.2]} 27. Qxb4 {[%clk 0:00:59.5]} 27... Rf2 {[%clk 0:01:01.4]} 28. Qxb6
{[%clk 0:00:59.2]} 28... Rxc2 {[%clk 0:00:57.5]} 29. Rac1 {[%clk 0:00:41.8]}
29... Nxa4 {[%clk 0:00:43]} 30. Qb3 {[%clk 0:00:34.6]} 30... Nc5 {[%clk
0:00:41.6]} 31. Qe3 {[%clk 0:00:34.4]} 31... Rxc1 {[%clk 0:00:38.3]} 32. Rxc1
{[%clk 0:00:26.3]} 32... Nd3 {[%clk 0:00:38.4]} 33. Qxe6+ {[%clk 0:00:25.5]}
33... Kh8 {[%clk 0:00:27]} 34. Nf7+ {[%clk 0:00:25.5]} 34... Kg8 {[%clk
0:00:27.3]} 35. Nxg5+ {[%clk 0:00:25.2]} 35... Kh8 {[%clk 0:00:24.9]} 36. Nf7+
{[%clk 0:00:24.1]} 36... Kg8 {[%clk 0:00:25.3]} 37. Qxd5 {[%clk 0:00:09.7]}
37... Rf8 {[%clk 0:00:13.1]} 38. Ng5+ {[%clk 0:00:07.8]} 38... Kh8 {[%clk
0:00:12.6]} 39. Nxh7 {[%clk 0:00:08.4]} 39... Nxc1 {[%clk 0:00:05.1]} 40. Nxf8
{[%clk 0:00:08.3]} 40... Qxf8 {[%clk 0:00:04.8]} 41. Qd4+ {[%clk 0:00:06.8]}
41... Qg7 {[%clk 0:00:05.1]} 42. Qxg7+ {[%clk 0:00:06.4]} 42... Kxg7 {[%clk
0:00:05.1]} 43. Be4 {[%clk 0:00:06.3]} 43... Ne2 {[%clk 0:00:03.8]} 44. Kg2
{[%clk 0:00:06.6]} 44... Nd4 {[%clk 0:00:03.9]} 45. Bd5 {[%clk 0:00:04.2]} 45...
Nf5 {[%clk 0:00:03.7]} 46. Kf3 {[%clk 0:00:04.7]} 46... Ne7 {[%clk 0:00:03.9]}
47. Be4 {[%clk 0:00:04.5]} 47... Ng8 {[%clk 0:00:03.9]} 48. Kf4 {[%clk
0:00:04.2]} 48... Nf6 {[%clk 0:00:04.2]} 49. Bf3 {[%clk 0:00:04.9]} 49... Kg6
{[%clk 0:00:04.7]} 50. h4 {[%clk 0:00:03.8]} 50... Ng8 {[%clk 0:00:03.9]} 51.
Be4+ {[%clk 0:00:03.5]} 51... Kg7 {[%clk 0:00:04]} 52. g4 {[%clk 0:00:03.9]}
52... Nh6 {[%clk 0:00:02.8]} 53. g5 {[%clk 0:00:04.1]} 53... Nf7 {[%clk
0:00:03.5]} 54. Bd5 {[%clk 0:00:04]} 54... Nd6 {[%clk 0:00:03.9]} 55. Ke5 {[%clk
0:00:04.1]} 55... Nb5 {[%clk 0:00:03.2]} 56. Bc4 {[%clk 0:00:03.6]} 56... Nc7
{[%clk 0:00:03.3]} 57. Kd6 {[%clk 0:00:03.6]} 57... Ne8+ {[%clk 0:00:03.3]} 58.
Kd7 {[%clk 0:00:03.6]} 58... Kf8 {[%clk 0:00:03.9]} 59. Ke6 {[%clk 0:00:02.7]}
59... Kg7 {[%clk 0:00:03.4]} 60. Bd3 {[%clk 0:00:02.2]} 60... Nc7+ {[%clk
0:00:03.1]} 61. Kd6 {[%clk 0:00:02.4]} 1-0

[Event "Late-Titled-Tuesday-Blitz-April-16-2024"]
[Site "Chess.com"]
[Date "2024.04.16"]
[Round "2"]
[White "mishanick"]
[Black "Andrei_Skvortsov"]
[Result "1-0"]
[WhiteElo "3043"]
[BlackElo "2643"]
[TimeControl "180+1"]
[EndTime "14:18:57 PDT"]
[Termination "mishanick won on time"]

1. d4 {[%clk 0:03:00.9]} 1... d5 {[%clk 0:02:54.9]} 2. c4 {[%clk 0:03:00.1]}
2... e6 {[%clk 0:02:41.1]} 3. Nc3 {[%clk 0:02:59.6]} 3... a6 {[%clk 0:02:40.9]}
4. cxd5 {[%clk 0:02:57.2]} 4... exd5 {[%clk 0:02:41.8]} 5. Nf3 {[%clk
0:02:57.9]} 5... Be7 {[%clk 0:02:41.7]} 6. Bf4 {[%clk 0:02:57.7]} 6... Nf6
{[%clk 0:02:42.1]} 7. e3 {[%clk 0:02:58.3]} 7... O-O {[%clk 0:02:41.7]} 8. Bd3
{[%clk 0:02:58.5]} 8... Nh5 {[%clk 0:02:41.9]} 9. Be5 {[%clk 0:02:57.7]} 9...
Nc6 {[%clk 0:02:39.9]} 10. h3 {[%clk 0:02:56.9]} 10... Nxe5 {[%clk 0:02:38.1]}
11. dxe5 {[%clk 0:02:57.3]} 11... g6 {[%clk 0:02:37.4]} 12. O-O {[%clk
0:02:50.1]} 12... Ng7 {[%clk 0:02:31.9]} 13. Qd2 {[%clk 0:02:44.2]} 13... c6
{[%clk 0:02:28.3]} 14. Nd4 {[%clk 0:02:41.6]} 14... f6 {[%clk 0:02:22.2]} 15.
exf6 {[%clk 0:02:35]} 15... Bxf6 {[%clk 0:02:23.1]} 16. Nce2 {[%clk 0:02:34.9]}
16... c5 {[%clk 0:01:56.9]} 17. Nf3 {[%clk 0:02:31.9]} 17... b6 {[%clk
0:01:57.4]} 18. Rad1 {[%clk 0:02:31.4]} 18... Bb7 {[%clk 0:01:57.4]} 19. b3
{[%clk 0:02:32]} 19... Qe7 {[%clk 0:01:53.8]} 20. Nf4 {[%clk 0:02:31.9]} 20...
Rfd8 {[%clk 0:01:47.7]} 21. Rfe1 {[%clk 0:02:29.6]} 21... Ne6 {[%clk 0:01:41.7]}
22. Nxe6 {[%clk 0:02:21.5]} 22... Qxe6 {[%clk 0:01:41.9]} 23. Qc2 {[%clk
0:02:19.9]} 23... Kg7 {[%clk 0:01:40.5]} 24. Rd2 {[%clk 0:02:13]} 24... Qf7
{[%clk 0:01:24.3]} 25. e4 {[%clk 0:02:09.5]} 25... dxe4 {[%clk 0:01:21.9]} 26.
Bxe4 {[%clk 0:02:09.4]} 26... Rxd2 {[%clk 0:01:22]} 27. Qxd2 {[%clk 0:02:08.1]}
27... Rd8 {[%clk 0:01:18.6]} 28. Qc2 {[%clk 0:02:07]} 28... Bc8 {[%clk 0:01:16]}
29. Bd3 {[%clk 0:02:00.3]} 29... Re8 {[%clk 0:01:12.6]} 30. Rd1 {[%clk 0:01:53]}
30... Qc7 {[%clk 0:01:10]} 31. a4 {[%clk 0:01:44.3]} 31... Re7 {[%clk
0:01:09.1]} 32. Bc4 {[%clk 0:01:38.9]} 32... Qf4 {[%clk 0:01:06.4]} 33. Qd2
{[%clk 0:01:19.3]} 33... Qxd2 {[%clk 0:01:02.9]} 34. Rxd2 {[%clk 0:01:20.2]}
34... Bb7 {[%clk 0:00:22.6]} 35. Bd5 {[%clk 0:01:20.3]} 35... Bc8 {[%clk
0:00:22.3]} 36. Bc4 {[%clk 0:01:20.4]} 36... Bb7 {[%clk 0:00:22.5]} 37. Bd5
{[%clk 0:01:13.6]} 37... Bc8 {[%clk 0:00:21.9]} 38. Kf1 {[%clk 0:01:13.9]} 38...
Rd7 {[%clk 0:00:15.3]} 39. Ke2 {[%clk 0:01:05.1]} 39... Rd6 {[%clk 0:00:15.4]}
40. g4 {[%clk 0:01:01.9]} 40... h6 {[%clk 0:00:15.1]} 41. Rd3 {[%clk 0:01:01.2]}
41... b5 {[%clk 0:00:11.9]} 42. Nd2 {[%clk 0:00:58.9]} 42... c4 {[%clk
0:00:08.2]} 43. bxc4 {[%clk 0:00:58.5]} 43... bxa4 {[%clk 0:00:08.8]} 44. Ne4
{[%clk 0:00:50.6]} 44... Rd8 {[%clk 0:00:08.6]} 45. Nc5 {[%clk 0:00:40.5]} 45...
a3 {[%clk 0:00:06.3]} 46. Rxa3 {[%clk 0:00:39.9]} 46... Be7 {[%clk 0:00:06.7]}
47. Ra5 {[%clk 0:00:40.6]} 47... Rd6 {[%clk 0:00:06.9]} 48. f4 {[%clk
0:00:39.1]} 48... Rb6 {[%clk 0:00:07.3]} 49. Kd3 {[%clk 0:00:37.1]} 49... Bd8
{[%clk 0:00:06]} 50. Ra2 {[%clk 0:00:30.8]} 50... h5 {[%clk 0:00:06.5]} 51. Rg2
{[%clk 0:00:28.3]} 51... hxg4 {[%clk 0:00:06]} 52. hxg4 {[%clk 0:00:28.4]} 52...
Be7 {[%clk 0:00:06.3]} 53. Ne4 {[%clk 0:00:24.8]} 53... Rb3+ {[%clk 0:00:05.7]}
54. Kd4 {[%clk 0:00:25.4]} 54... Rf3 {[%clk 0:00:03.6]} 55. f5 {[%clk
0:00:25.3]} 55... Rf4 {[%clk 0:00:03.5]} 56. Ke5 {[%clk 0:00:23.9]} 56... Rf1
{[%clk 0:00:01.7]} 57. c5 {[%clk 0:00:12.7]} 57... Re1 {[%clk 0:00:01.6]} 58. c6
{[%clk 0:00:12.4]} 58... Bd8 {[%clk 0:00:01.8]} 59. Kd6 {[%clk 0:00:10.4]} 59...
Rc1 {[%clk 0:00:02.5]} 60. Rf2 {[%clk 0:00:09.5]} 60... gxf5 {[%clk 0:00:02.1]}
61. gxf5 {[%clk 0:00:10.4]} 61... Bh4 {[%clk 0:00:01.5]} 62. f6+ {[%clk
0:00:09.8]} 1-0

[Event "Late-Titled-Tuesday-Blitz-April-16-2024"]
[Site "Chess.com"]
[Date "2024.04.16"]
[Round "2"]
[White "Vladimir_Zakhartsov"]
[Black "micke12a"]
[Result "0-1"]
[WhiteElo "2906"]
[BlackElo "2433"]
[TimeControl "180+1"]
[EndTime "14:18:59 PDT"]
[Termination "micke12a won by checkmate"]

1. d4 {[%clk 0:02:46.6]} 1... Nf6 {[%clk 0:02:56.6]} 2. c4 {[%clk 0:02:46.6]}
2... g6 {[%clk 0:02:54.9]} 3. Nc3 {[%clk 0:02:45.6]} 3... d5 {[%clk 0:02:53.5]}
4. cxd5 {[%clk 0:02:36.7]} 4... Nxd5 {[%clk 0:02:53.4]} 5. Na4 {[%clk
0:02:37.4]} 5... Bg7 {[%clk 0:02:52.2]} 6. e4 {[%clk 0:02:37]} 6... Nb6 {[%clk
0:02:52.8]} 7. Be3 {[%clk 0:02:36.7]} 7... O-O {[%clk 0:02:52.3]} 8. Nf3 {[%clk
0:02:30]} 8... Bg4 {[%clk 0:02:44.3]} 9. Nc5 {[%clk 0:02:29.1]} 9... Nc6 {[%clk
0:02:40.9]} 10. Nxb7 {[%clk 0:02:23.7]} 10... Qc8 {[%clk 0:02:40.3]} 11. Nc5
{[%clk 0:02:16.8]} 11... Bxf3 {[%clk 0:02:10.7]} 12. gxf3 {[%clk 0:02:13.6]}
12... Nxd4 {[%clk 0:02:03.2]} 13. Bxd4 {[%clk 0:01:38.9]} 13... Rd8 {[%clk
0:02:02.7]} 14. Nb3 {[%clk 0:01:27.6]} 14... e5 {[%clk 0:01:53.4]} 15. Bg2
{[%clk 0:01:05.6]} 15... exd4 {[%clk 0:01:52.3]} 16. O-O {[%clk 0:01:05.9]}
16... c5 {[%clk 0:01:52.3]} 17. f4 {[%clk 0:01:03.3]} 17... c4 {[%clk
0:01:49.9]} 18. Nd2 {[%clk 0:00:57.4]} 18... c3 {[%clk 0:01:47.4]} 19. Nb3
{[%clk 0:00:47.8]} 19... c2 {[%clk 0:01:20]} 20. Qd3 {[%clk 0:00:44.4]} 20...
Nc4 {[%clk 0:01:12.9]} 21. Qxc2 {[%clk 0:00:24.1]} 21... d3 {[%clk 0:01:11.5]}
22. Qd1 {[%clk 0:00:24.4]} 22... Nxb2 {[%clk 0:01:07.2]} 23. Qf3 {[%clk
0:00:21.2]} 23... d2 {[%clk 0:00:38.1]} 24. e5 {[%clk 0:00:21.3]} 24... Rb8
{[%clk 0:00:38.4]} 25. Bh3 {[%clk 0:00:13.1]} 25... Rd3 {[%clk 0:00:34]} 26.
Qxd3 {[%clk 0:00:09.4]} 26... Nxd3 {[%clk 0:00:32.2]} 27. Bxc8 {[%clk
0:00:09.4]} 27... Rxc8 {[%clk 0:00:33.1]} 28. Nxd2 {[%clk 0:00:08.3]} 28... Nxf4
{[%clk 0:00:32.6]} 29. Nf3 {[%clk 0:00:06.6]} 29... Rc3 {[%clk 0:00:29.2]} 30.
Nd2 {[%clk 0:00:07]} 30... Bxe5 {[%clk 0:00:24.8]} 31. Rab1 {[%clk 0:00:05.6]}
31... Rc2 {[%clk 0:00:23.3]} 32. Nf3 {[%clk 0:00:05.5]} 32... Ne2+ {[%clk
0:00:21.4]} 33. Kg2 {[%clk 0:00:05.5]} 33... Bc7 {[%clk 0:00:19.7]} 34. a4
{[%clk 0:00:05.2]} 34... Bb6 {[%clk 0:00:19.4]} 35. Ne5 {[%clk 0:00:04.4]} 35...
Nc3 {[%clk 0:00:18]} 36. Rb3 {[%clk 0:00:04]} 36... Ne4 {[%clk 0:00:17.2]} 37.
Rd3 {[%clk 0:00:02.4]} 37... Nxf2 {[%clk 0:00:15.9]} 38. Rd7 {[%clk 0:00:02.8]}
38... Ng4+ {[%clk 0:00:14.7]} 39. Kg3 {[%clk 0:00:03.2]} 39... Nxe5 {[%clk
0:00:15.1]} 40. Rb7 {[%clk 0:00:04]} 40... Rc3+ {[%clk 0:00:14.9]} 41. Kg2
{[%clk 0:00:04.2]} 41... Ng4 {[%clk 0:00:14.9]} 42. Re1 {[%clk 0:00:03.3]} 42...
Rc2+ {[%clk 0:00:14.7]} 43. Kg3 {[%clk 0:00:03.5]} 43... Bf2+ {[%clk 0:00:14.4]}
44. Kxg4 {[%clk 0:00:04.1]} 44... Bxe1 {[%clk 0:00:14.8]} 45. Rxa7 {[%clk
0:00:04.8]} 45... Rxh2 {[%clk 0:00:15.1]} 46. a5 {[%clk 0:00:05.3]} 46... Bxa5
{[%clk 0:00:14.9]} 47. Rxa5 {[%clk 0:00:05.5]} 47... Kg7 {[%clk 0:00:15.6]} 48.
Ra7 {[%clk 0:00:04.9]} 48... h5+ {[%clk 0:00:15.8]} 49. Kg5 {[%clk 0:00:05.2]}
49... Rb2 {[%clk 0:00:15.1]} 50. Ra4 {[%clk 0:00:02.7]} 50... Rb5+ {[%clk
0:00:14.9]} 51. Kh4 {[%clk 0:00:02.7]} 51... Kh6 {[%clk 0:00:14.9]} 52. Rc4
{[%clk 0:00:02.1]} 52... f5 {[%clk 0:00:14.3]} 53. Rc8 {[%clk 0:00:02.1]} 53...
g5+ {[%clk 0:00:13.2]} 54. Kg3 {[%clk 0:00:02.3]} 54... h4+ {[%clk 0:00:13.1]}
55. Kf3 {[%clk 0:00:02.5]} 55... Rb3+ {[%clk 0:00:13.2]} 56. Kg2 {[%clk
0:00:03.2]} 56... Kh5 {[%clk 0:00:13.6]} 57. Rc5 {[%clk 0:00:03.7]} 57... Kg4
{[%clk 0:00:13.6]} 58. Rc4+ {[%clk 0:00:04.6]} 58... f4 {[%clk 0:00:14]} 59. Rc1
{[%clk 0:00:05.3]} 59... Rb2+ {[%clk 0:00:14.1]} 60. Kh1 {[%clk 0:00:06.2]}
60... f3 {[%clk 0:00:13.4]} 61. Rg1+ {[%clk 0:00:06.1]} 61... Kh3 {[%clk
0:00:12.8]} 62. Rf1 {[%clk 0:00:06.1]} 62... Rh2+ {[%clk 0:00:12.6]} 63. Kg1
{[%clk 0:00:06.7]} 63... f2+ {[%clk 0:00:11.8]} 64. Rxf2 {[%clk 0:00:07]} 64...
Rxf2 {[%clk 0:00:12]} 65. Kh1 {[%clk 0:00:07.9]} 65... Rf1# {[%clk 0:00:11.8]}
0-1